Cogmind - Beta 11.1 @@@ ROGUE MODE // 2022.06.06 @ 13:30:19 Player: Demise Result: Destroyed by G-47 Trooper with Particle Gun Performance ------------- Evolutions (1) 500 Regions Visited (6) 1200 Robots Destroyed (154) 770 Value Destroyed (2709) 2709 Prototype IDs (26) 520 Alien Tech Used (0) 0 Bonus (657) 657 TOTAL SCORE: 6356 Bonus ------- High Alert Combat Kills 657 Cogmind --------- Core Integrity 0/400 Matter 260/300 Energy 280/280 System Corruption 0% Temperature Cool (13) Movement Rolling (135) Ox3 Location -8/Mines Parts ------- > --- POWER (1) -------- Cooled Ion Engine > --- PROPULSION (2) --- Armored Wheel Armored Wheel > --- UTILITY (4) ------ Huge Storage Unit Weight Redist. System Seismic Detector Hardened Light Armor Plating > --- WEAPON (2) ------- Heavy Assault Rifle Mini Grenade Launcher > --- INVENTORY (25) --- Nuclear Core Nuclear Core Light Fission Core Light Fission Core Armored Wheel Armored Wheel Cooling System Huge Storage Unit High-capacity Matter Pod (114) Structural Scanner Machine Analyzer Experimental Sensor Array Improved Terrain Scanner Core Shielding Light Armor Plating Hacking Suite Hacking Suite Hacking Suite Improved EM Shotgun Improved EM Shotgun Improved EM Shotgun Heavy Assault Rifle Heavy Assault Rifle Improved Assault Rifle Great Maul Peak State ------------ > --- POWER ------------ Cooled Ion Engine > --- PROPULSION ------- Armored Wheel Armored Wheel > --- UTILITY ---------- Huge Storage Unit Weight Redist. System Core Shielding Hardened Light Armor Plating > --- WEAPON ----------- Heavy Assault Rifle Mini Grenade Launcher > --- INVENTORY -------- Nuclear Core Nuclear Core Light Fission Core Light Fission Core Armored Wheel Armored Wheel Cooling System Huge Storage Unit High-capacity Matter Pod Structural Scanner Machine Analyzer Experimental Sensor Array Improved Terrain Scanner Seismic Detector Light Armor Plating Hacking Suite Hacking Suite Hacking Suite Improved EM Shotgun Improved EM Shotgun Improved EM Shotgun Heavy Assault Rifle Heavy Assault Rifle Improved Assault Rifle Great Maul [Rating: 24] Favorites ----------- Power Cooled Ion Engine Engine Cooled Ion Engine Power Core Nuclear Core Propulsion Armored Wheel Treads Light Treads Wheel Armored Wheel Flight Unit Improved Flight Unit Utility Huge Storage Unit Device Weight Redist. System Storage Huge Storage Unit Processor Targeting Computer Protection Hardened Light Armor Plating Weapon Heavy Assault Rifle Energy Gun Improved EM Shotgun Energy Cannon Advanced Beam Cannon Ballistic Gun Heavy Assault Rifle Launcher Mini Grenade Launcher Impact Weapon Mace Special Melee Weapon Datajack Build | -11 -10 -10 -9 -9 -9 -8 ------- Run | Scr Mat Min Mat Min Exi Min Slots Evolved 2 | . . . 2 . . . Power . | . . . . . . . Propulsion . | . . . . . . . Utility 2 | . . . 2 . . . Weapon . | . . . . . . . Parts Attached 112 | 7 25 4 61 7 5 3 Power 10 | 1 3 . 6 . . . Engine 8 | 1 3 . 4 . . . Core 2 | . . . 2 . . . Reactor . | . . . . . . . Propulsion 24 | 2 5 . 17 . . . Treads 3 | . . . 3 . . . Leg . | . . . . . . . Wheel 19 | 2 5 . 12 . . . Hover . | . . . . . . . Flight 2 | . . . 2 . . . Utility 38 | 2 9 . 22 1 3 1 Device 18 | 1 6 . 9 1 . 1 Storage 2 | 1 1 . . . . . Processor 3 | . 1 . 1 . 1 . Hackware . | . . . . . . . Protection 15 | . 1 . 12 . 2 . Artifact . | . . . . . . . Weapon 40 | 2 8 4 16 6 2 2 Energy Gun 7 | 2 2 3 . . . . Energy Cannon 1 | . . . 1 . . . Ballistic Gun 24 | . 5 1 12 5 . 1 Ballistic Cannon . | . . . . . . . Launcher 4 | . . . 1 1 1 1 Special Weapon . | . . . . . . . Impact Weapon 1 | . 1 . . . . . Slashing Weapon . | . . . . . . . Piercing Weapon . | . . . . . . . Special Melee Weapon 3 | . . . 2 . 1 . Unidentified Prototypes 5 | . 2 . 3 . . . Parts Lost 16 | . 8 . 8 . . . Power 4 | . 3 . 1 . . . Propulsion 6 | . 3 . 3 . . . Utility 2 | . . . 2 . . . Weapon 4 | . 2 . 2 . . . Highest Loss Streak 3 | . 2 . 3 . . . To Critical Strikes . | . . . . . . . Average Slot Usage (%) 97 | . 92 100 98 100 99 100 Engine 10 | . 9 14 10 11 11 11 Wheel 23 | . 27 28 21 22 22 22 Device 13 | . 11 14 11 21 16 20 Storage 11 | . 14 14 11 11 11 11 Protection 11 | . 1 . 18 11 15 12 Energy Gun 4 | . 10 24 . . . . Ballistic Gun 16 | . 16 1 18 21 11 22 Launcher 1 | . . . 3 . 5 . Naked Turns . | . . . . . . . Heaviest Build 100 | 13 92 92 100 100 100 100 Greatest Support 30 | 20 26 20 30 30 30 30 Greatest Overweight (x) 5 | . 4 4 5 3 3 3 Average Overweight (x) 2 | . 1 4 3 3 3 3 Largest Inventory Capacity 25 | 8 25 25 25 25 25 25 Average Capacity 22 | 7 16 25 25 25 25 25 Most Carried 25 | 7 23 25 25 25 25 25 Average Carried 21 | 2 13 23 24 24 24 24 Final Capacity 25 | 8 25 25 25 25 25 25 Final Carried 25 | 6 22 25 25 25 25 25 Class Distribution -------------------- 85% | Mutant 14% | Scavenger-Mutant Dominant Class ---------------- Mutant | -10/Materials Mutant | -10/Mines Mutant | -9/Materials Mutant | -9/Mines Mutant | -9/Exiles Mutant | -8/Mines Resources | -11 -10 -10 -9 -9 -9 -8 ----------- Run | Scr Mat Min Mat Min Exi Min Matter Collected 2920 | 270 304 101 1908 209 62 66 Remotely . | . . . . . . . Salvage Created 4992 | 246 746 279 3391 155 . 175 Parts 342 | 16 50 16 239 14 . 7 Haulers Intercepted 5 | . 1 . 4 . . . Recyclers Shooed 8 | . 2 . 5 1 . . Parts Field Recycled . | . . . . . . . Retrieved Matter . | . . . . . . . Parts Self-Destructed . | . . . . . . . Prevented . | . . . . . . . Kills | -11 -10 -10 -9 -9 -9 -8 ------- Run | Scr Mat Min Mat Min Exi Min Combat Hostiles Destroyed 80 | . 16 . 54 6 . 4 Guns 53 | . 16 . 35 1 . 1 AOE 27 | . . . 19 5 . 3 Classes Destroyed 13 | 3 6 . 4 . . . Worker 31 | 2 1 1 26 1 . . Builder 16 | . 1 . 14 1 . . Tunneler 9 | 5 . 3 1 . . . Hauler 5 | . 1 . 4 . . . Recycler 14 | 1 1 2 10 . . . Mechanic 1 | . . . 1 . . . Operator 4 | . 2 . 2 . . . Watcher 7 | . 2 . 5 . . . Swarmer 20 | . 6 . 11 3 . . Grunt 48 | . 10 . 31 3 . 4 Brawler 1 | . . . 1 . . . Protector 2 | . . . 2 . . . Sentry 9 | . . . 9 . . . Best Kill Streak 9 | 5 4 3 8 9 . 3 Combat Bots Only 7 | . 4 . 7 7 . 3 Max Kills in Single Turn 3 | 1 1 1 3 2 . 2 Gunslinging . | . . . . . . . Exploded 2 | . . . 2 2 . 2 Melee . | . . . . . . . Uniques/NPCs Destroyed . | . . . . . . . Combat | -11 -10 -10 -9 -9 -9 -8 -------- Run | Scr Mat Min Mat Min Exi Min Damage Taken 2815 | . 808 . 1660 149 . 198 Core 626 | . 218 . 337 42 . 29 Absorbed by Shields . | . . . . . . . Redirected to Shielding 78 | . 2 . 68 6 . 2 Regen/Repaired (Parts) 190 | . 8 . 182 . . . Core Remaining (%) 56 | 100 . 12 . . . . Volleys Fired 393 | 15 74 13 269 12 . 10 Largest 2 | 2 2 2 2 2 . 2 Hottest 100 | 100 100 90 53 46 . 46 Shots Fired 640 | 30 141 26 407 20 . 16 Gun 602 | 30 141 26 377 16 . 12 Cannon . | . . . . . . . Launcher 38 | . . . 30 4 . 4 Special . | . . . . . . . Kinetic 468 | . 63 . 377 16 . 12 Thermal 108 | 30 78 . . . . . Explosive 38 | . . . 30 4 . 4 Electromagnetic 26 | . . 26 . . . . Robot Hit Streak 31 | 4 11 3 31 12 . 6 Robot Miss Streak 5 | 2 5 3 3 1 . 3 Penetration Max . | . . . . . . . Secondary Targets 4 | . 2 . 2 . . . Max Gunslinging Chain 1 | . 1 . 1 . . . Shots Hit Robots 427 | 20 91 14 274 15 4 9 Core Hits 244 | 9 40 6 171 9 . 9 Critical Kills . | . . . . . . . Critical Parts Destroyed 3 | . . . 3 . . . Critical Strikes 10 | 2 5 . 3 . . . Burn 7 | 2 5 . . . . . Destroy 3 | . . . 3 . . . Melee Attacks 7 | . 3 . . . 4 . Impact 3 | . 3 . . . . . Slashing . | . . . . . . . Piercing . | . . . . . . . Sneak Attacks 5 | . 1 . . . 4 . Combat Hostiles . | . . . . . . . Follow-up Attacks . | . . . . . . . Damage Inflicted 8889 | 252 1167 270 6226 530 . 444 Guns 5336 | 252 1109 215 3475 190 . 95 Cannons . | . . . . . . . Explosions 3495 | . . 55 2751 340 . 349 Melee 58 | . 58 . . . . . Ramming . | . . . . . . . Kinetic 4156 | . 396 . 3475 190 . 95 Thermal 1287 | 252 713 55 267 . . . Explosive 3173 | . . . 2484 340 . 349 Electromagnetic 215 | . . 215 . . . . Impact 58 | . 58 . . . . . Slashing . | . . . . . . . Piercing . | . . . . . . . Highest Corruption 6 | . 6 6 . . . . Average Corruption 4 | . 3 6 . . . . Corruption Purged . | . . . . . . . Corruption Blocked . | . . . . . . . Effects 28 | . 11 17 . . . . Message Errors 9 | . 3 6 . . . . Matter Fused 6 | . 3 3 . . . . Heat Flow Errors 5 | . 1 4 . . . . Energy Discharges 4 | . 2 2 . . . . Data Loss (minor) 1 | . 1 . . . . . Data Loss (major) 2 | . 1 1 . . . . Alerts 1 | . . 1 . . . . Overload Shots . | . . . . . . . Overflow Damage 285 | . 18 36 195 36 . . Projectiles . | . . . . . . . Explosions 267 | . . 36 195 36 . . Melee 18 | . 18 . . . . . Knockbacks 2 | . 2 . . . . . Impact 1 | . 1 . . . . . Kinetic . | . . . . . . . Secondary 1 | . 1 . . . . . Self-Inflicted Damage 116 | . . . 49 40 . 27 Shots 3 | . . . 1 1 . 1 Rammed . | . . . . . . . Targets Rammed . | . . . . . . . Kicked . | . . . . . . . Crushed . | . . . . . . . Highest Temperature 268 | 250 204 268 28 29 . 4 Average Temperature 56 | 93 81 78 7 13 . 4 Received Heat Transfer 1077 | . 270 . 645 63 . 99 Effects 3 | . . 3 . . . . Interference 3 | . . 3 . . . . Siege Activations . | . . . . . . . Robots Corrupted . | . . . . . . . Combat Hostiles . | . . . . . . . Parts Fried 2 | . . 2 . . . . Impact Corruptions 1 | . 1 . . . . . Robots Melted . | . . . . . . . Combat Hostiles . | . . . . . . . Parts Melted 7 | 3 4 . . . . . Heat Transferred 3617 | 888 2479 100 150 . . . Parts Sabotaged . | . . . . . . . Parts Stolen . | . . . . . . . Parts Stripped . | . . . . . . . Power Chain Reactions 1 | . . 1 . . . . Missiles Intercepted . | . . . . . . . Alert | -11 -10 -10 -9 -9 -9 -8 ------- Run | Scr Mat Min Mat Min Exi Min Peak Influence 1757 | 40 362 74 1757 954 . 128 Initial 685 | . 26 51 3 685 . . Average 501 | 16 197 32 710 826 . 75 Maximum Alert Level 5 | . 1 . 5 3 . . Low Security (%) 35 | 100 49 100 15 . . 100 Level 1 19 | . 50 . 18 . . . Level 2 12 | . . . 24 3 . . Level 3 20 | . . . 15 96 . . Level 4 10 | . . . 22 . . . Level 5 1 | . . . 3 . . . High Security . | . . . . . . . Max Security . | . . . . . . . Sterilizations 1 | . . . 1 . . . Squads Dispatched 16 | . 3 . 13 . . . Investigation 4 | . 1 . 3 . . . Extermination . | . . . . . . . Reinforcement 8 | . 2 . 6 . . . Assault 4 | . . . 4 . . . Garrison . | . . . . . . . Intercept . | . . . . . . . Searches Triggered . | . . . . . . . Construction Impeded 4 | . . . 4 . . . Haulers Reinforced . | . . . . . . . Active Scanning Responses . | . . . . . . . Cargo Convoy Interrupts . | . . . . . . . Stealth | -11 -10 -10 -9 -9 -9 -8 --------- Run | Scr Mat Min Mat Min Exi Min Distress Signals 5 | . 3 . 2 . . . Communications Jammed . | . . . . . . . Distress Signals . | . . . . . . . Times Spotted 114 | . 29 . 74 7 . 4 Peak Tracking Total 6 | . 5 . 6 3 . 3 Tactical Retreats 6 | . 3 . 3 . . . Traps | -11 -10 -10 -9 -9 -9 -8 ------- Run | Scr Mat Min Mat Min Exi Min Traps Triggered 5 | . 4 . 1 . . . Indirectly . | . . . . . . . Trap Hack Attempts 59 | . . . 59 . . . Triggered . | . . . . . . . Disarmed 5 | . . . 5 . . . Reprogrammed . | . . . . . . . Reused . | . . . . . . . Traps Extracted . | . . . . . . . Installed . | . . . . . . . Triggered . | . . . . . . . Machines | -11 -10 -10 -9 -9 -9 -8 ---------- Run | Scr Mat Min Mat Min Exi Min Machines Disabled 5 | . . . 4 . . 1 Max in Single Turn 1 | . . . 1 . . 1 Machines Sabotaged . | . . . . . . . Garrisons Compromised . | . . . . . . . Overloaded Fab Kills . | . . . . . . . Hacking | -11 -10 -10 -9 -9 -9 -8 --------- Run | Scr Mat Min Mat Min Exi Min Machines Accessed 21 | . 8 . 12 . 1 . Terminals 13 | . 6 . 7 . . . Fabricators . | . . . . . . . Repair Stations 3 | . 1 . 2 . . . Recycling Units 3 | . 1 . 2 . . . Scanalyzers 1 | . . . 1 . . . Garrison Access . | . . . . . . . Total Hacks 88 | . 33 . 54 . 1 . Successful 59 | . 20 . 38 . 1 . Failed 29 | . 13 . 16 . . . Catastrophic 2 | . . . 2 . . . Database Lockouts . | . . . . . . . Manual 42 | . 16 . 26 . . . Terminals 60 | . 23 . 37 . . . Fabricators . | . . . . . . . Repair Stations 14 | . 8 . 6 . . . Recycling Units 7 | . 2 . 5 . . . Scanalyzers 6 | . . . 6 . . . Garrison Access . | . . . . . . . Terminal Hacks 25 | . 9 . 15 . 1 . Record 1 | . . . . . 1 . Part Schematic 3 | . . . 3 . . . Robot Schematic 1 | . . . 1 . . . Robot Analysis 7 | . 5 . 2 . . . Prototype ID Bank 5 | . 1 . 4 . . . Level Access Points 1 | . . . 1 . . . Branch Access Points 2 | . 1 . 1 . . . Terminal Index 1 | . 1 . . . . . Locate Traps 1 | . . . 1 . . . Hauler Manifests 1 | . . . 1 . . . Registered Components 1 | . 1 . . . . . Zone Layout 1 | . . . 1 . . . Fabricator Hacks . | . . . . . . . Repair Station Hacks 14 | . 8 . 6 . . . Scan Component 7 | . 4 . 3 . . . Repair 7 | . 4 . 3 . . . Recycling Unit Hacks . | . . . . . . . Scanalyzer 6 | . . . 6 . . . Insert Component 3 | . . . 3 . . . Analyze 3 | . . . 3 . . . Garrison Access Hacks . | . . . . . . . Unauthorized Hacks 14 | . 3 . 11 . . . Terminals 13 | . 3 . 10 . . . Track 3 | . . . 3 . . . Botnet 9 | . 3 . 6 . . . Operators 1 | . . . 1 . . . Fabricators . | . . . . . . . Repair Stations . | . . . . . . . Recycling Units 1 | . . . 1 . . . Tunnel 1 | . . . 1 . . . Scanalyzers . | . . . . . . . Garrison Access . | . . . . . . . Data Cores Recovered . | . . . . . . . Used . | . . . . . . . Hacking Detections 19 | . 8 . 11 . . . Full Trace Events 7 | . 4 . 3 . . . Feedback Events . | . . . . . . . Feedback Blocked . | . . . . . . . Robot Schematics Acquired 1 | . . . 1 . . . Robots Built . | . . . . . . . Authchips . | . . . . . . . Time . | . . . . . . . Total Robot Build Rating . | . . . . . . . Part Schematics Acquired 6 | . . . 6 . . . Parts Built . | . . . . . . . Authchips . | . . . . . . . Time . | . . . . . . . Total Part Build Rating . | . . . . . . . Parts Repaired 7 | . 4 . 3 . . . Time 224 | . 128 . 96 . . . Parts Recycled . | . . . . . . . Recycled Matter . | . . . . . . . Retrieved Matter . | . . . . . . . Retrieved Components . | . . . . . . . Parts Scanalyzed 3 | . . . 3 . . . Part Schematics Acquired 3 | . . . 3 . . . Parts Damaged . | . . . . . . . Bothacking | -11 -10 -10 -9 -9 -9 -8 ------------ Run | Scr Mat Min Mat Min Exi Min Used RIF Installer . | . . . . . . . Robots Hacked 4 | . . . . . 4 . Non-combat 3 | . . . . . 3 . Combat 1 | . . . . . 1 . Robot Hacks Applied 4 | . . . . . 4 . parse_system 4 | . . . . . 4 . Relay Couplers Released . | . . . . . . . Fabnet Peak Effective % . | . . . . . . . Robots Rewired . | . . . . . . . Allies Hacked . | . . . . . . . Hacks Repelled . | . . . . . . . Allies | -11 -10 -10 -9 -9 -9 -8 -------- Run | Scr Mat Min Mat Min Exi Min Total Allies 2 | . . . . 2 . . Largest Group 2 | . . . . 2 2 . Highest-Rated Group 47 | . . . . 47 47 . Highest-Rated Ally 31 | . . . . 31 31 . Total Orders . | . . . . . . . Ally Attacks . | . . . . . . . Total Damage . | . . . . . . . Kills . | . . . . . . . Allies Corrupted . | . . . . . . . Allies Melted . | . . . . . . . Intel | -11 -10 -10 -9 -9 -9 -8 ------- Run | Scr Mat Min Mat Min Exi Min Robot Analysis Total 7 | . 5 . 2 . . . Derelict Logs Recovered 4 | . . 3 . 1 . . Drone Launches . | . . . . . . . Drone Recoveries . | . . . . . . . Exploration | -11 -10 -10 -9 -9 -9 -8 ------------- Run | Scr Mat Min Mat Min Exi Min Turns Passed 6457 | 126 1282 710 2861 833 444 201 Spaces Moved 3466 | 80 780 455 1200 571 314 66 Core 6 | 1 5 . . . . . Treads . | . . . . . . . Legs . | . . . . . . . Wheels 3460 | 79 775 455 1200 571 314 66 Hover . | . . . . . . . Flight . | . . . . . . . Fastest Speed 50 | 50 80 140 120 135 135 135 Average Speed 127 | 79 108 140 133 135 135 135 Slowest Speed 200 | 80 200 140 165 135 135 135 Overloaded Moves . | . . . . . . . Propulsion Burnouts . | . . . . . . . Robots Hopped . | . . . . . . . Cave-ins Triggered . | . . . . . . . Exploration Rate (%) 63 | 4 98 98 75 90 62 18 Regions Visited 6 Branch Regions 4 Pre-discovered Areas 4 | . . 2 1 . 1 . Known Exits Taken 4 | . 1 1 1 . 1 . Unknown Exits Taken 2 | 1 . . . 1 . . Scrap Searched 2 | . . 1 . 1 . . Spaces Dug 9 | . 1 . . . . 8 Terrain Destroyed 272 | . 1 1 198 47 . 25 Melee 1 | . 1 . . . . . Projectile . | . . . . . . . AOE 271 | . . 1 198 47 . 25 Terrain Rammed . | . . . . . . . Walls Destroyed . | . . . . . . . Machines Disabled . | . . . . . . . Actions | -11 -10 -10 -9 -9 -9 -8 --------- Run | Scr Mat Min Mat Min Exi Min Total 4878 | 109 1082 505 2077 612 332 161 Wait 706 | . 152 19 437 18 . 80 Move 3460 | 79 779 454 1199 570 313 66 Hop . | . . . . . . . Pick Up 75 | 7 31 8 22 2 4 1 Fast Attach 34 | 7 11 2 12 . 2 . Attach 19 | . 6 . 13 . . . Detach 9 | . 3 . 5 . 1 . Swap 59 | . 8 2 36 7 3 3 Drop 57 | 1 15 7 25 3 5 1 Fire 393 | 15 74 13 269 12 . 10 Melee 7 | . 3 . . . 4 . Ram . | . . . . . . . Kick . | . . . . . . . Crush . | . . . . . . . Escape Stasis . | . . . . . . . Rewire . | . . . . . . . Trap 59 | . . . 59 . . . Miscellaneous . | . . . . . . . Route ------- -11/Scrapyard -10/Materials (discovered 4 exits: *Mat x3 / *Min) -10/Mines (discovered 2 exits: *Mat x2) -9/Materials (discovered 5 exits: *Mat x3 / *Min x2) -9/Mines (discovered 3 exits: *Mat x2 / *Exi) -9/Exiles -8/Mines History --------- Turn | Location | Event 9 | -11/Scrapyard | Discovered new exit (range 16) 127 | -11/Scrapyard | Entered Materials 311 | -10/Materials | Build established: Mutant 431 | -10/Materials | Core integrity fell below 50% 536 | -10/Materials | Discovered new exit (range 13) 570 | -10/Materials | Discovered new exit (range 4) 611 | -10/Materials | Core integrity fell below 20% 726 | -10/Materials | Discovered new exit (range 3) 941 | -10/Materials | Discovered new exit (range 10) 956 | -10/Materials | Identified exit to Materials 991 | -10/Materials | Identified exit to Mines 1211 | -10/Materials | Repaired Seismic Detector? 1257 | -10/Materials | Repaired Hacking Suite 1296 | -10/Materials | Repaired Hacking Suite 1323 | -10/Materials | Repaired Core Shielding 1409 | -10/Materials | Entered Mines 1412 | -10/Mines | Learned 2 Materials zone layouts 1450 | -10/Mines | Met a Derelict bent on vengeance 1454 | -10/Mines | Learned location of Storage (-7) 1610 | -10/Mines | Discovered exit to Materials (range 8) 1911 | -10/Mines | Discovered exit to Materials (range 5) 1986 | -10/Mines | Learned Materials terminal intel 2119 | -10/Mines | Entered Materials 2119 | -9/Materials | Evolved 2 slots: Utility x2 2120 | -9/Materials | Identified exit to Materials 2121 | -9/Materials | Loaded intel: 12 terminal locations 2145 | -9/Materials | Discovered new exit (range 12) 2294 | -9/Materials | Identified exit to Mines 2391 | -9/Materials | Lost 3 parts (1p1n1w) 2850 | -9/Materials | Build established: Scavenger-Mutant 2977 | -9/Materials | Core integrity fell below 50% 3081 | -9/Materials | Destroyed 7 combat bots 3343 | -9/Materials | Repaired Weight Redist. System 3376 | -9/Materials | Repaired Arm. Wheel 3435 | -9/Materials | Build established: Mutant 4091 | -9/Materials | Repaired Hrd. Light Armor Plating 4119 | -9/Materials | First assault squad dispatched 4889 | -9/Materials | Core integrity fell below 20% 4967 | -9/Materials | Sterilization system engaged 4967 | -9/Materials | Non-combat units ordered to evacuate 4980 | -9/Materials | Entered Mines 5016 | -9/Mines | Destroyed 7 combat bots 5053 | -9/Mines | Discovered exit to Materials (range 7) 5220 | -9/Mines | Found a damaged Exp. Sensor Array with a note attached 5226 | -9/Mines | Found Prototype Device 5274 | -9/Mines | Joined a pair of Derelicts in attacking an 0b10 outpost 5403 | -9/Mines | Received a Rocket Launcher from a helpful Derelict 5619 | -9/Mines | Found a hidden stash of uninstalled traps 5803 | -9/Mines | Deemed a non-threat by the Exiles lab entrance 5803 | -9/Mines | Discovered new exit (range 5) 5813 | -9/Mines | Entered Exiles 5813 | -9/Exiles | Accompanied by 2 allies 5843 | -9/Exiles | Led the pair of lost Derelicts to a safe place 5846 | -9/Exiles | Met 8R-AWN 5873 | -9/Exiles | Met EX-HEX 5915 | -9/Exiles | Met EX-BIN 5957 | -9/Exiles | Met EX-DEC 5963 | -9/Exiles | Learned location of Zion (-6) 6189 | -9/Exiles | Discovered new exit (range 14) 6252 | -9/Exiles | Identified exit to Mines 6257 | -9/Exiles | Entered Mines 6458 | -8/Mines | Destroyed by G-47 Trooper with Particle Gun Last Messages --------------- 06253_ Discarded Signal Interpreter. 06254_ Acquired Core Shielding. 06255_ Dropped Hcp. Matter Pod. 06256_ Extracted 20 matter. 06256_ Acquired Hcp. Matter Pod. LOCATION=MINES GOAL=ESCAPE 06257_ G-47 Trooper destroyed. 06257_ G-50 Soldier destroyed. 06267_ The unstable cave ceiling collapses. 06276_ G-47 Trooper destroyed. 06288_ The unstable cave ceiling collapses. 06304_ K-01 Serf collects debris. 06358_ Dropped Hcp. Matter Pod. 06358_ Extracted 66 matter. 06360_ K-01 Serf collects debris. 06362_ Acquired Hcp. Matter Pod. 06362_ K-01 Serf collects debris. 06457_ Laser Drill disabled. 06457_ G-47 Trooper destroyed. Map ----- +----------------------------------------------------+ | ?????????????????????????????????????? | | ????????####?????????????????????????? | | ???###### ##????????????????????????? | | ???# #????????????????????????? | | ???# ##???????????????????????? | | ????# ##??????????????????????? | | ????# ## ####???????????????????? | | ??### ### ##??????????????????? | | ??# ###????????????????? | | ??# #### ##???????????????? | | ??# #??# """ #???????????????? | | ??# #??# """ #???????????????? | | ??# #??# """ ##???????????????? | | ?? ??## ####????????????????? | | ?? ???## #????#??????????????? | | ?# """???## ## #??? k ?????????????? | | ?# """????##### #?? """ #???????????? | | ?# """ ?????## ###= " #???????????? | | ?# ????## %* #???????????? | | ?#######???# #???????????? | | ???????????# g #???????????? | | ???????????## g #???????????? | | ????????????# [ #????????????? | | ????????????# =%%[ #####????????? | | ????????????# !% ????????? | | ????????????#@ #????????????? | | ????????????## #????????????? | | ????????????## #####????????????? | | ?????????????## ##???????????????? | | ?????????????? ##????????????????? | | ?????????????? ###?????????????????? | | ?????????????? ##???????????????????? | | ?????????????? ##????????????????????? | | ?????????????# ??????????????????????? | | ?????????????# ??????????????????????? | | ?????????????# ??????????????????????? | | ?????????????# ??????????????????????? | | ??????????????#??????????????????????? | | ?????????????????????????????????????? | | ?????????????????????????????????????? | | ?????????????????????????????????????? | | ?????????????????????????????????????? | | ?????????????????????????????????????? | | ?????????????????????????????????????? | | ?????????????????????????????????????? | | ?????????????????????????????????????? | | ?????????????????????????????????????? | | ?????????????????????????????????????? | | ?????????????????????????????????????? | | ?????????????????????????????????????? | +----------------------------------------------------+ Best States ------------- Heat Dissipation 35 Energy Generation 14 Energy Capacity 280 Matter Stores 300 Matter Capacity 300 Sight Range 16 Terrain Scan Density 10 Additional Mass Support 6 Armor Coverage 150 Core Shielding 20 Evasion (%) 44 Targeting Accuracy 5 Recoil Reduction 2 Item Schematics ----------------- Huge Storage Unit | -9/Materials | Hacked Hcp. Storage Unit | -9/Materials | Hacked Lrg. Storage Unit | -9/Materials | Hacked Hacking Suite | -9/Materials | Scanalyzed Structural Scanner | -9/Materials | Scanalyzed Seismic Detector | -9/Materials | Scanalyzed Robot Schematics ------------------ Y-45 Defender | -9/Materials | Hacked Fabricated ------------ Nothing Alien Tech Used ----------------- None Achievements -------------- None Challenges ------------ None Game ------ Seed SuperchargedAssemblySource Manual? 0 Play Time 00:55:44 Cumulative 571.5 hours Start 2022.06.06 @ 12:20:29 End 2022.06.06 @ 13:30:19 Sessions 3 Manual Loads 0 Difficulty Rogue Special Mode None Game No. 459 Rogue 459 Adventurer 0 Explorer 0 Win Type - Total 5 Types 4/0/0/1/0/0/0/0/0 Lore% 71 Gallery% 84 Achievement% 66 Wizard Run 0 Options --------- ASCII 0 Keyboard 1 Movement Numpad Keybinds 0 Fullscreen 1 Font 12/Terminus Map View 83x54 Tactical HUD 1 Map Filters NONE Filters NONE Steam 1 RUN: 1ac19be1-23a1-428d-b66c-9f9cd7967924